Cogmind - Beta 16 @@@ ROGUE MODE // 2025.10.29 @ 13:10:17 Player: Lazz Result: Destroyed by G-47 Trooper with Particle Gun Performance ------------- Evolutions (2) 1000 Regions Visited (4) 800 Robots Destroyed (32) 160 Value Destroyed (793) 793 Prototype IDs (0) 0 Alien Tech Used (0) 0 Bonus (0) 0 TOTAL SCORE: 2753 Bonus ------- None Cogmind --------- Core Integrity 0/550 Matter 90/300 Energy 300/300 System Corruption 1% Temperature Cool (9) Movement Walking (120) Location -8/Storage Parts ------- > --- POWER (1) -------- (None) > --- PROPULSION (4) --- Carbon-fiber Leg > --- UTILITY (4) ------ Large Battery > --- WEAPON (2) ------- Gauss Rifle > --- INVENTORY (5) ---- Subdweller Power Source Trap Scanner Subdweller Optics Peak State ------------ > --- POWER ------------ Subdweller Power Source > --- PROPULSION ------- Flight Unit Flight Unit Flight Unit Flight Unit > --- UTILITY ---------- Large Battery Subdweller Optics Improved Sensor Array Power Shielding > --- WEAPON ----------- Subdweller Laser Light Assault Rifle > --- INVENTORY -------- Light Ion Engine Subdweller Power Source Subdweller Power Source Trap Scanner Light EM Pulse Cannon [Rating: 17] Favorites ----------- Power Light Ion Engine Engine Light Ion Engine Propulsion Flight Unit Treads Light Treads Leg Aluminum Leg Flight Unit Flight Unit Utility Large Battery Device Subdweller Optics Storage Large Battery Processor Targeting Computer Protection Power Shielding Weapon Light Assault Rifle Energy Gun Small Laser Energy Cannon Light EM Pulse Cannon Ballistic Gun Light Assault Rifle Ballistic Cannon Heavy Assault Cannon Build | -11 -10 -10 -8 -8 ------- Run | Yrd Mat Sub Mat Sto Slots Evolved 4 | . . . 4 . Power . | . . . . . Propulsion 2 | . . . 2 . Utility 2 | . . . 2 . Weapon . | . . . . . Parts Attached 37 | 6 9 5 12 5 Power 6 | 1 1 1 2 1 Engine 6 | 1 1 1 2 1 Core . | . . . . . Reactor . | . . . . . Propulsion 13 | 4 3 1 3 2 Treads 3 | 2 . . 1 . Leg 4 | 2 . . . 2 Wheel . | . . . . . Hover . | . . . . . Flight 6 | . 3 1 2 . Utility 7 | 1 . 2 4 . Device 3 | . . 1 2 . Storage 2 | 1 . . 1 . Processor 1 | . . . 1 . Hackware . | . . . . . Protection 1 | . . 1 . . Artifact . | . . . . . Weapon 11 | . 5 1 3 2 Energy Gun 4 | . 2 1 1 . Energy Cannon 1 | . . . 1 . Ballistic Gun 4 | . 3 . . 1 Ballistic Cannon 2 | . . . 1 1 Launcher . | . . . . . Special Weapon . | . . . . . Impact Weapon . | . . . . . Slashing Weapon . | . . . . . Piercing Weapon . | . . . . . Special Melee Weapon . | . . . . . Unidentified Prototypes . | . . . . . Parts Lost 18 | . . 3 13 2 Power 3 | . . 1 2 . Propulsion 7 | . . 1 5 1 Utility 2 | . . . 2 . Weapon 6 | . . 1 4 1 Highest Loss Streak 6 | . . 2 6 2 To Critical Strikes . | . . . . . Average Backups 4 | 3 5 4 3 3 Power 1 | . . 1 1 1 Propulsion 1 | 1 3 2 . . Utility . | . . . . 2 Weapon . | 1 . . . . Tool/Special . | . . . . . Unused Backups 3 | . 1 . 1 1 Power 1 | . . . 1 . Propulsion 1 | . 1 . . . Utility 1 | . . . . 1 Weapon . | . . . . . Tool/Special . | . . . . . Average Slot Usage (%) 65 | . 75 81 58 19 Engine 10 | . 14 13 8 . Treads 1 | . 1 . 1 . Leg 3 | . 10 . . 3 Flight 14 | . 15 27 8 . Device 6 | . . 2 15 . Storage 5 | . 5 . 8 9 Protection 3 | . . 11 3 . Energy Gun 2 | . 4 2 2 . Ballistic Gun 13 | . 22 23 1 . Ballistic Cannon 2 | . . . 4 6 Peak Build Rating 17 | 4 6 9 17 10 Average Rating 9 | 2 5 6 14 7 On Entrance 4 | . 4 5 9 4 Avg Prop Armor Cover (%) . | . . . . . Naked Turns . | . . . . . Heaviest Build 28 | 8 11 11 28 15 Greatest Support 40 | 20 40 8 20 30 Greatest Overweight (x) 9 | 1 1 1 9 4 Average Overweight (x) . | . . . 2 2 Largest Inventory Capacity 8 | 8 8 5 5 5 Average Capacity 5 | 7 6 5 5 5 Most Carried 8 | 6 8 5 5 5 Average Carried 4 | 3 5 4 3 3 Final Capacity 8 | 8 5 5 5 5 Final Carried 6 | 6 5 5 4 3 Class Distribution -------------------- 51% | Mutant 41% | Scavenger-Mutant 7% | Scavenger-Sprinter Dominant Class ---------------- Scavenger-Mutant | -10/Materials Scavenger-Mutant | -10/Subcaves Mutant | -8/Materials Mutant | -8/Storage Resources | -11 -10 -10 -8 -8 ----------- Run | Yrd Mat Sub Mat Sto Matter Collected 914 | . 348 252 214 100 Remotely . | . . . . . Salvage Created 1090 | . 194 241 533 122 Parts 48 | . 16 9 15 8 Haulers Intercepted 1 | . . . 1 . Recyclers Shooed 3 | . 2 . 1 . Parts Field Recycled . | . . . . . Retrieved Matter . | . . . . . Parts Self-Destructed 5 | . . 5 . . Prevented . | . . . . . Parts Restored . | . . . . . Kills | -11 -10 -10 -8 -8 ------- Run | Yrd Mat Sub Mat Sto Combat Hostiles Destroyed 22 | . 9 3 7 3 Guns 15 | . 9 3 2 1 Cannons 4 | . . . 2 2 AOE 3 | . . . 3 . Classes Destroyed 10 | . 2 1 7 . Worker 2 | . . . 2 . Builder 2 | . . . 1 1 Hauler 1 | . . . 1 . Recycler 4 | . 1 . 3 . Watcher 1 | . . . 1 . Swarmer 10 | . 9 1 . . Grunt 7 | . . . 5 2 Sentry 1 | . . . 1 . Hunter 2 | . . . 1 1 Subdweller 2 | . . 2 . . Best Kill Streak 6 | . 6 1 3 3 Combat Bots Only 6 | . 6 1 2 1 Max Kills in Single Turn 3 | . 1 1 3 1 Gunslinging . | . . . . . Exploded 2 | . . . 2 . Melee . | . . . . . Uniques/NPCs Destroyed . | . . . . . Combat | -11 -10 -10 -8 -8 -------- Run | Yrd Mat Sub Mat Sto Hostile Shots Fired 242 | . 63 34 98 47 Missed 72 | . 15 18 28 11 Hits 170 | . 48 16 70 36 Projectile 170 | . 48 16 70 36 Critical Strikes 1 | . . . 1 . Damage Taken 2523 | . 387 279 1321 536 Core 763 | . 89 112 430 132 Absorbed by Shields . | . . . . . Redirected to Shielding 48 | . . 24 24 . Core Remaining (%) 59 | 100 . 19 . . Volleys Fired 156 | . 39 45 57 15 Largest 2 | . 2 2 2 1 Hottest 116 | . 80 80 116 50 Shots Fired 225 | . 76 71 63 15 Gun 181 | . 76 71 31 3 Cannon 44 | . . . 32 12 Launcher . | . . . . . Special . | . . . . . Kinetic 163 | . 52 60 36 15 Thermal 61 | . 24 11 26 . Explosive . | . . . . . Electromagnetic 1 | . . . 1 . Robot Hit Streak 42 | . 4 39 42 7 Robot Miss Streak 6 | . 3 6 2 2 Penetration Max 1 | . . . . 1 Secondary Targets 1 | . 1 . . . Max Gunslinging Chain 1 | . 1 . . . Shots Hit Robots 141 | . 33 58 39 11 Core Hits 53 | . 16 16 16 5 Critical Kills . | . . . . . Critical Parts Destroyed . | . . . . . Critical Strikes 7 | . . . 4 3 Burn 1 | . . . 1 . Blast 6 | . . . 3 3 Melee Attacks . | . . . . . Impact . | . . . . . Slashing . | . . . . . Piercing . | . . . . . Sneak Attacks . | . . . . . Combat Hostiles . | . . . . . Follow-up Attacks . | . . . . . Damage Inflicted 3485 | . 352 599 2062 472 Guns 1375 | . 352 599 339 85 Cannons 1451 | . . . 1064 387 Explosions 657 | . . . 657 . Melee . | . . . . . Ramming 2 | . . . 2 . Kinetic 2190 | . 253 388 1077 472 Thermal 1293 | . 99 211 983 . Explosive . | . . . . . Electromagnetic . | . . . . . Impact . | . . . . . Slashing . | . . . . . Piercing . | . . . . . Highest Corruption 1 | . 1 1 1 1 Average Corruption 1 | . 1 1 1 1 Corruption Purged . | . . . . . Corruption Blocked . | . . . . . Effects 12 | . 2 3 6 1 Message Errors 2 | . . 1 1 . Matter Fused 6 | . . 1 4 1 Data Loss (minor) 1 | . 1 . . . Data Loss (major) 3 | . 1 1 1 . Overload Shots . | . . . . . Overflow Damage 254 | . . . 223 31 Projectiles 162 | . . . 131 31 Explosions 92 | . . . 92 . Melee . | . . . . . Knockbacks 13 | . . . 8 5 Impact . | . . . . . Kinetic 13 | . . . 8 5 Secondary . | . . . . . Self-Inflicted Damage 192 | . . . 192 . Shots 3 | . . . 3 . Rammed 1 | . . . 1 . Targets Rammed 1 | . . . 1 . Kicked . | . . . . . Crushed . | . . . . . Highest Temperature 313 | . 216 16 313 12 Average Temperature 75 | . 110 5 81 6 Received Heat Transfer 810 | . . 36 558 216 Effects 2 | . 2 . . . Interference 2 | . 2 . . . Siege Activations . | . . . . . Martial Activations . | . . . . . Shielding Activations . | . . . . . Robots Disrupted . | . . . . . Combat Hostiles . | . . . . . Robots Corrupted . | . . . . . Combat Hostiles . | . . . . . Parts Fried . | . . . . . Impact Corruptions . | . . . . . Robots Melted . | . . . . . Combat Hostiles . | . . . . . Parts Melted 3 | . . . 3 . Heat Transferred 1530 | . 225 250 1055 . Parts Sabotaged . | . . . . . Parts Stolen . | . . . . . Parts Stripped . | . . . . . Power Chain Reactions . | . . . . . Alert | -11 -10 -10 -8 -8 ------- Run | Yrd Mat Sub Mat Sto Maximum Alert Level . | . . . . . Low Security (%) 100 | 100 100 . 100 100 Level 1 . | . . . . . Level 2 . | . . . . . Level 3 . | . . . . . Level 4 . | . . . . . Level 5 . | . . . . . High Security . | . . . . . Max Security . | . . . . . Peak Influence 155 | . 155 . 142 62 Initial 20 | . . . . 20 Average 62 | . 78 . 62 30 Influence Increases 912 | . 275 140 380 117 Destroy 0b10 Robot/C 400 | . 180 20 140 60 Destroy 0b10 Robot/NC 50 | . 5 . 40 5 Destroy Leader 84 | . 30 . 34 20 Successful Hack 30 | . 30 . . . Disable Machine 90 | . . . 60 30 Destroy Structure 93 | . . . 91 2 Partial Spotted 15 | . 15 . . . Lose Combat Pursuer 150 | . 15 120 15 . Influence Decreases 855 | . 216 199 332 108 Entered New Map 57 | . . 29 . 28 Time Decay 648 | . 216 140 232 60 Lost Part 150 | . . 30 100 20 Squads Dispatched 5 | . 1 . 2 2 Investigation 2 | . 1 . 1 . Extermination . | . . . . . Reinforcement 3 | . . . 1 2 Assault . | . . . . . Garrison . | . . . . . Intercept . | . . . . . Searches Triggered . | . . . . . Construction Impeded 2 | . . . 1 1 Haulers Reinforced . | . . . . . Active Scanning Responses . | . . . . . Cargo Convoy Interrupts . | . . . . . Stealth | -11 -10 -10 -8 -8 --------- Run | Yrd Mat Sub Mat Sto Distress Signals 1 | . 1 . . . Communications Jammed . | . . . . . Distress Signals . | . . . . . Times Spotted 50 | . 18 12 15 5 Peak Tracking Total 6 | . 6 6 5 3 Tactical Retreats 4 | . 1 2 1 . Traps | -11 -10 -10 -8 -8 ------- Run | Yrd Mat Sub Mat Sto Traps Triggered . | . . . . . Indirectly . | . . . . . Trap Hack Attempts . | . . . . . Triggered . | . . . . . Disarmed . | . . . . . Reprogrammed . | . . . . . Reused . | . . . . . Traps Extracted . | . . . . . Installed . | . . . . . Triggered . | . . . . . Machines | -11 -10 -10 -8 -8 ---------- Run | Yrd Mat Sub Mat Sto Machines Disabled 6 | . . . 4 2 Max in Single Turn 2 | . . . 2 1 Machines Repaired . | . . . . . Machines Dismantled . | . . . . . Machines Sabotaged . | . . . . . Overloaded Fab Kills . | . . . . . Hacking | -11 -10 -10 -8 -8 --------- Run | Yrd Mat Sub Mat Sto Machines Accessed 4 | . 3 . 1 . Terminals 3 | . 2 . 1 . Fabricators . | . . . . . Repair Stations . | . . . . . Recycling Units 1 | . 1 . . . Scanalyzers . | . . . . . Garrison Access . | . . . . . Total Hacks 14 | . 10 . 4 . Successful 4 | . 4 . . . Failed 10 | . 6 . 4 . Catastrophic 1 | . . . 1 . Database Lockouts . | . . . . . Manual 9 | . 9 . . . Terminals 9 | . 5 . 4 . Fabricators . | . . . . . Repair Stations . | . . . . . Recycling Units 5 | . 5 . . . Scanalyzers . | . . . . . Garrison Access . | . . . . . Terminal Hacks 2 | . 2 . . . Robot Analysis 1 | . 1 . . . Branch Access Points 1 | . 1 . . . Fabricator Hacks . | . . . . . Repair Station Hacks . | . . . . . Recycling Unit Hacks . | . . . . . Scanalyzer . | . . . . . Garrison Access Hacks . | . . . . . Unauthorized Hacks . | . . . . . Terminals . | . . . . . Fabricators . | . . . . . Repair Stations . | . . . . . Recycling Units . | . . . . . Scanalyzers . | . . . . . Garrison Access . | . . . . . Data Cores Recovered . | . . . . . Used . | . . . . . Hacking Detections 4 | . 3 . 1 . Full Trace Events 2 | . 1 . 1 . Feedback Events 2 | . 1 . 1 . Corruption 2 | . 1 . 1 . Feedback Blocked . | . . . . . Robot Schematics Acquired . | . . . . . Robots Built . | . . . . . Authchips . | . . . . . Time . | . . . . . Total Robot Build Rating . | . . . . . Part Schematics Acquired . | . . . . . Parts Built . | . . . . . Authchips . | . . . . . Time . | . . . . . Total Part Build Rating . | . . . . . Part Studies Acquired . | . . . . . Parts Repaired . | . . . . . Time . | . . . . . Parts Recycled . | . . . . . Recycled Matter . | . . . . . Retrieved Matter . | . . . . . Retrieved Components . | . . . . . Parts Scanalyzed . | . . . . . Part Schematics Acquired . | . . . . . Parts Damaged . | . . . . . Bothacking | -11 -10 -10 -8 -8 ------------ Run | Yrd Mat Sub Mat Sto Used RIF Installer . | . . . . . Robots Hacked . | . . . . . Non-combat . | . . . . . Combat . | . . . . . Robot Hacks Applied . | . . . . . Relay Couplers Released . | . . . . . Fabnet Peak Effective % . | . . . . . Robots Rewired . | . . . . . Allies Hacked . | . . . . . Hacks Repelled . | . . . . . Allies | -11 -10 -10 -8 -8 -------- Run | Yrd Mat Sub Mat Sto Total Allies . | . . . . . Largest Group . | . . . . . Highest-Rated Group . | . . . . . Highest-Rated Ally . | . . . . . Total Orders . | . . . . . Ally Attacks . | . . . . . Total Damage . | . . . . . Kills . | . . . . . Allies Corrupted . | . . . . . Allies Melted . | . . . . . Intel | -11 -10 -10 -8 -8 ------- Run | Yrd Mat Sub Mat Sto Active Infowar (turns) 542 | . . 58 484 . Optics 515 | . . 58 457 . Sensors 466 | . . . 466 . Seismic 11 | . . . 11 . Robot Analysis Total 1 | . 1 . . . Derelict Logs Recovered 1 | . . 1 . . Drone Launches . | . . . . . Drone Recoveries . | . . . . . Exploration | -11 -10 -10 -8 -8 ------------- Run | Yrd Mat Sub Mat Sto Turns Passed 1768 | 68 536 371 665 128 Spaces Moved 1134 | 42 294 523 235 40 Core 113 | 19 . . 60 34 Treads 57 | . 3 . 54 . Legs 119 | 23 90 . . 6 Wheels . | . . . . . Hover . | . . . . . Flight 845 | . 201 523 121 . Fastest Speed 31 | 50 37 37 31 50 Average Speed 84 | 103 64 42 180 205 Slowest Speed 500 | 120 160 117 500 250 Overloaded Moves . | . . . . . Propulsion Burnouts . | . . . . . Robots Hopped . | . . . . . Potential Cave-ins . | . . . . . Cave-ins Triggered . | . . . . . Exploration Rate (%) 26 | 4 47 49 23 11 Regions Visited 4 Branch Regions 2 Pre-discovered Areas . | . . . . . Known Exits Taken 1 | . . . 1 . Unknown Exits Taken 3 | 1 1 1 . . Scrap Searched 3 | . . 3 . . Spaces Dug . | . . . . . Terrain Destroyed 101 | . . . 98 3 Melee . | . . . . . Projectile 18 | . . . 15 3 AOE 83 | . . . 83 . Terrain Rammed . | . . . . . Walls Destroyed . | . . . . . Machines Disabled . | . . . . . Actions | -11 -10 -10 -8 -8 --------- Run | Yrd Mat Sub Mat Sto Total 1711 | 65 572 611 398 65 Wait 317 | 8 200 33 75 1 Move 1130 | 41 293 522 234 40 Hop . | . . . . . Pick Up 38 | 10 11 5 10 2 Fast Attach 3 | . . 1 1 1 Attach 27 | 4 5 4 10 4 Detach 6 | . 3 . 1 2 Swap 16 | 2 10 . 4 . Drop 17 | . 11 1 5 . Fire 156 | . 39 45 57 15 Melee . | . . . . . Ram . | . . . . . Kick . | . . . . . Crush 1 | . . . 1 . Escape Stasis . | . . . . . Rewire . | . . . . . Trap . | . . . . . Miscellaneous . | . . . . . Route ------- -11/Scrapyard -10/Materials (discovered 3 exits: [*Mat] / Min / [*Sub]) -10/Subcaves -8/Materials (discovered 3 exits: Fac x2 / *Sto) -8/Storage History --------- Turn | Location | Event 22 | -11/Scrapyard | Discovered new exit (range 16) 69 | -11/Scrapyard | Entered Materials 345 | -10/Materials | Identified exit to Mines 401 | -10/Materials | Discovered new exit (range 4) 578 | -10/Materials | Discovered new exit (range 4) 605 | -10/Materials | Entered Subcaves 611 | -10/Subcaves | Learned 8 Materials zone layouts 676 | -10/Subcaves | Disturbed a concealed Subdweller 823 | -10/Subcaves | Disturbed a concealed Subdweller 829 | -10/Subcaves | Core integrity fell below 50% 855 | -10/Subcaves | Discovered new exit (range 15) 976 | -10/Subcaves | Core integrity fell below 20% 976 | -10/Subcaves | Entered Materials 976 | -8/Materials | Evolved 4 slots: Propulsion x2, Utility x2 977 | -8/Materials | Identified exit to Factory 977 | -8/Materials | Identified exit to Storage 1160 | -8/Materials | Lost 6 parts (3n3w) 1448 | -8/Materials | Core integrity fell below 50% 1501 | -8/Materials | Build established: Mutant 1641 | -8/Materials | Entered Storage 1669 | -8/Storage | Lost 3 parts (1p1n1w) 1726 | -8/Storage | Core integrity fell below 20% 1769 | -8/Storage | Destroyed by G-47 Trooper with Particle Gun Last Messages --------------- Slug penetrates H-55 Commando. H-55 Commando Gauss Rifle blasted off. H-55 Commando destroyed. Slug penetrates Wall. Destroyed Wheel. U-05 Engineer suffers critical hit (Blast). Destroyed Welding Torch. U-05 Engineer knocked back. Hvy. Assault Cannon destroyed. ALERT: Construction progress impeded, dispatching reinforcements to local area. Acquired Carbon-fiber Leg. Acquired 56 matter. Acquired Gauss Rifle. Carbon-fiber Leg destroyed. Slug penetrates G-47 Trooper. U-05 Engineer destroyed. Slug penetrates G-47 Trooper. G-47 Trooper destroyed. Acquired 44 matter. Map ----- +----------------------------------------------------+ | | | | | | | | | | | | | | | | | | | | | | | | | ???????#############?????????????????????????????? | | ???????# #?????????????????????????????? | | ???????# ! #?????????????????????????????? | | ???????# #?????????????????????????????? | | ???????# #?????????????????????????????? | | ???????# """ """ #?????????????????????????????? | | ???????# """ """ #?????????????????????????????? | | ???????# """ """ #?????????????????????????????? | | ???????######+###############????????????????????? | | ???????# ^###??????????????????? | | ???????# *^# #??????????????????? | | ???????# ! %^###??????????????????? | | ???????######+############g#####?????????????????? | | ?????????# #???# =@*%%% +?????????????????? | | ?????????# """ #???# """%" #?????????????????? | | ?????????# """ #???# """" o#?????????????????? | | ?????????# "" #???# """"" #?????????????????? | | ?????????# /![#???#] #?????????????????? | | ?????????# " /![#???# """"" #?????????????????? | | ?????????# T /[[#???# """"" +?????????????????? | | ?????????# " #???# ????????????????????????? | | ?????????# #???# ????????????????????????? | | ?????????##########???###????????????????????????? | | ?????????????????????????????????????????????????? | | ?????????????????????????????????????????????????? | | ?????????????????????????????????????????????????? | | ?????????????????????????????????????????????????? | | ?????????????????????????????????????????????????? | | ?????????????????????????????????????????????????? | | ?????????????????????????????????????????????????? | | ?????????????????????????????????????????????????? | | ?????????????????????????????????????????????????? | | ?????????????????????????????????????????????????? | | ?????????????????????????????????????????????????? | | ?????????????????????????????????????????????????? | | ?????????????????????????????????????????????????? | | ?????????????????????????????????????????????????? | | ?????????????????????????????????????????????????? | +----------------------------------------------------+ Best States ------------- Heat Dissipation 31 Energy Generation 15 Energy Capacity 475 Matter Stores 300 Matter Capacity 300 Sight Range 21 Robot Scan Range 15 Terrain Scan Density 10 Power Shielding 33 Evasion (%) 63 Targeting Accuracy 5 Recoil Reduction 2 Item Schematics ----------------- None Robot Schematics ------------------ None Fabricated ------------ Nothing Repaired ---------- Nothing Studied --------- None Alien Tech Used ----------------- None Achievements -------------- None Challenges ------------ None Game ------ Seed MicrowarpNetworkedSpiker Manual? 0 Play Time 00:31:31 Cumulative 31.1 hours Start 2025.10.29 @ 08:42:21 End 2025.10.29 @ 13:10:17 Sessions 2 Manual Loads 0 Difficulty Rogue Special Mode None Game No. 40 Rogue 40 Adventurer 0 Explorer 0 Win Type - Total 0 Types 0/0/0/0/0/0/0/0/0/0 Lore% 29 Gallery% 30 Achievement% 23 Wizard Run 0 Options --------- Layout 2 ASCII 0 Keyboard 0 Movement Mouse Keybinds 0 Fullscreen 1 Font 24/Smallcaps Map View 50x44 Zoom Use 0% Tactical HUD 0 Map Filters NONE Filters NONE Steam 1 RUN: 578e856c-c2e5-44ef-944d-8e33cfbb40d8